fUST/lending_fUST_20260518
["ID","MTS","AMOUNT","RATE_DAILY","PERIOD"]
[422569541,1779103839000,-345.28808367,0.000103,2]
[422569543,1779103839000,-189.49532691,0.000103,2]
[422569550,1779103839000,-400.0,0.000104,4]
[422569542,1779103839000,-740.84855864,0.000103,2]
[422569546,1779103839000,-644.67120602,0.000103,2]
[422569544,1779103839000,-589.75570833,0.000103,2]
[422569553,1779103839000,-13393.25374926,0.00010428,2]
[422569552,1779103839000,-290.10082341,0.00010427,2]
[422569549,1779103839000,-400.0,0.000104,3]
[422569547,1779103839000,-666.59813201,0.000103,2]
[422569548,1779103839000,-5028.30002016,0.0001034,2]
[422569545,1779103839000,-320.68254584,0.000103,2]
[422569551,1779103839000,-395.0,0.000104,2]
[422569564,1779103841000,-1532.90452827,0.00010428,2]
[422569563,1779103841000,-359.50100004,0.00010428,2]
[422569565,1779103841000,-452.28667416,0.00010428,2]
[422569587,1779103844000,-687212.4418307,0.00010428,2]
[422569591,1779103844000,-1826.03086402,0.00010428,2]
[422569592,1779103844000,-857.52287274,0.00010428,2]
[422569590,1779103844000,-8806.98300026,0.00010428,2]
[422569589,1779103844000,-5064.92389278,0.00010428,2]
[422569588,1779103844000,-427.77401337,0.00010428,2]
[422569586,1779103844000,-182.8947373,0.00010219,2]
[422569616,1779103847000,-1115.66249425,0.00010428,2]
[422569615,1779103847000,-182.8947373,0.00010219,2]
[422569619,1779103847000,-3833.74259902,0.00010428,2]
[422569665,1779103847000,-4549.94968314,0.00010428,2]
[422569663,1779103847000,-90265.71876339,0.00010428,2]
[422569624,1779103847000,-462.34,0.00010428,2]
[422569667,1779103847000,-7113.5952742,0.00010428,2]
[422569680,1779104139000,-200.0,9.469e-05,2]
[422569681,1779104140000,-200.0,9.469e-05,2]
[422569682,1779104141000,-200.0,9.469e-05,2]
[422569685,1779104142000,-200.0,9.469e-05,2]
[422569684,1779104142000,-200.0,9.469e-05,2]
[422569683,1779104142000,-200.0,9.469e-05,2]
[422569688,1779104143000,-200.0,9.469e-05,2]
[422569687,1779104143000,-200.0,9.469e-05,2]
[422569686,1779104143000,-200.0,9.469e-05,2]
[422569689,1779104144000,-200.0,9.469e-05,2]
[422569690,1779104149000,-200.0,9.469e-05,2]
[422569692,1779104156000,-200.0,9.469e-05,2]
[422569691,1779104156000,-200.0,9.469e-05,2]
[422569693,1779104157000,-200.0,9.469e-05,2]
[422569694,1779104157000,-200.0,9.469e-05,2]
[422569696,1779104158000,-200.0,9.469e-05,2]
[422569695,1779104158000,-200.0,9.469e-05,2]
[422569698,1779104161000,-200.0,9.469e-05,2]
[422569697,1779104161000,-200.0,9.469e-05,2]
[422569700,1779104162000,-200.0,9.469e-05,2]
[422569699,1779104162000,-200.0,9.469e-05,2]
[422569704,1779104163000,-200.0,9.469e-05,2]
[422569703,1779104163000,-200.0,9.469e-05,2]
[422569701,1779104163000,-200.0,9.469e-05,2]
[422569702,1779104163000,-200.0,9.469e-05,2]
[422569709,1779104164000,-200.0,9.74e-05,2]
[422569708,1779104164000,-22.18831212,9.74e-05,2]
[422569707,1779104164000,-177.81168788,9.564e-05,2]
[422569705,1779104164000,-178.95382513,9.564e-05,2]
[422569706,1779104164000,-21.04617487,9.564e-05,2]
[422569710,1779104165000,-143.88787874,9.74e-05,2]
[422569711,1779104165000,-56.11212126,9.914e-05,2]
[422569713,1779104165000,-43.88787874,9.914e-05,2]
[422569714,1779104165000,-156.11212126,9.915e-05,2]
[422569712,1779104165000,-200.0,9.914e-05,2]
[422569718,1779104166000,-200.0,9.915e-05,2]
[422569716,1779104166000,-143.88787874,9.915e-05,2]
[422569717,1779104166000,-56.11212126,9.915e-05,2]
[422569715,1779104166000,-200.0,9.915e-05,2]
[422569719,1779104167000,-200.0,9.915e-05,2]
[422569721,1779104176000,-18.48538489,9.915e-05,2]
[422569722,1779104176000,-6.33870406,9.915e-05,2]
[422569720,1779104176000,-175.17591105,9.564e-05,2]
[422569724,1779104177000,-200.0,9.915e-05,2]
[422569723,1779104177000,-200.0,9.915e-05,2]
[422569729,1779104178000,-200.0,9.915e-05,2]
[422569727,1779104178000,-195.38526235,9.915e-05,2]
[422569728,1779104178000,-4.61473765,9.915e-05,2]
[422569726,1779104178000,-106.33870406,9.915e-05,2]
[422569725,1779104178000,-93.66129594,9.915e-05,2]
[422569730,1779104179000,-200.0,9.915e-05,2]
[422569733,1779104179000,-200.0,9.915e-05,2]
[422569731,1779104179000,-95.38526235,9.915e-05,2]
[422569732,1779104179000,-104.61473765,9.915e-05,2]
[422569736,1779104180000,-200.0,9.915e-05,2]
[422569735,1779104180000,-4.61473765,9.915e-05,2]
[422569734,1779104180000,-195.38526235,9.915e-05,2]
[422569737,1779104181000,-200.0,9.915e-05,2]
[422569740,1779104182000,-200.0,9.915e-05,2]
[422569738,1779104182000,-95.38526235,9.915e-05,2]
[422569739,1779104182000,-104.61473765,9.915e-05,2]
[422569741,1779104183000,-200.0,9.915e-05,2]
[422569744,1779104194000,-200.0,9.915e-05,2]
[422569743,1779104194000,-132.89045844,9.915e-05,2]
[422569742,1779104194000,-67.10954156,9.915e-05,2]
[422569747,1779104195000,-200.0,9.915e-05,2]
[422569746,1779104195000,-32.89045844,9.915e-05,2]
[422569745,1779104195000,-167.10954156,9.915e-05,2]
[422569748,1779104196000,-200.0,9.915e-05,2]
[422569750,1779104206000,-132.89045844,9.915e-05,2]
[422569749,1779104206000,-67.10954156,9.915e-05,2]
[422569752,1779104207000,-167.10954156,9.915e-05,2]
[422569753,1779104207000,-32.89045844,9.916e-05,2]
[422569751,1779104207000,-200.0,9.915e-05,2]
[422569754,1779104208000,-200.0,9.916e-05,2]
[422569755,1779104209000,-200.0,9.916e-05,2]
[422569756,1779104224000,-200.0,9.916e-05,2]
[422569757,1779104225000,-200.0,9.916e-05,2]
[422569760,1779104273000,-200.0,9.916e-05,2]
[422569761,1779104274000,-200.0,9.916e-05,2]
[422569762,1779104276000,-200.0,9.916e-05,2]
[422569763,1779104279000,-500.0,9.916e-05,2]
[422569764,1779104280000,-500.0,9.916e-05,2]
[422569767,1779104281000,-500.0,9.916e-05,2]
[422569766,1779104281000,-500.0,9.916e-05,2]
[422569765,1779104281000,-500.0,9.916e-05,2]
[422569768,1779104282000,-500.0,9.916e-05,2]
[422569769,1779104282000,-500.0,9.916e-05,2]
[422569772,1779104283000,-206.79784915,9.524e-05,2]
[422569771,1779104283000,-500.0,9.916e-05,2]
[422569770,1779104283000,-500.0,9.916e-05,2]
[422569773,1779104283000,-293.20215085,9.916e-05,2]
[422569775,1779104284000,-500.0,9.916e-05,2]
[422569774,1779104284000,-500.0,9.916e-05,2]
[422569778,1779104285000,-500.0,9.916e-05,2]
[422569777,1779104285000,-500.0,9.916e-05,2]
[422569776,1779104285000,-500.0,9.916e-05,2]
[422569782,1779104292000,-500.0,9.916e-05,2]
[422569781,1779104292000,-500.0,9.916e-05,2]
[422569780,1779104292000,-328.52224707,9.916e-05,2]
[422569779,1779104292000,-171.47775293,9.524e-05,2]
[422569783,1779104293000,-500.0,9.916e-05,2]
[422569784,1779104293000,-500.0,9.916e-05,2]
[422569785,1779104293000,-500.0,9.916e-05,2]
[422569787,1779104294000,-500.0,9.916e-05,2]
[422569786,1779104294000,-500.0,9.916e-05,2]
[422569788,1779104295000,-500.0,9.916e-05,2]
[422569789,1779104302000,-500.0,9.916e-05,2]
[422569791,1779104303000,-500.0,9.916e-05,2]
[422569790,1779104303000,-500.0,9.916e-05,2]
[422569794,1779104304000,-500.0,9.916e-05,2]
[422569793,1779104304000,-500.0,9.916e-05,2]
[422569792,1779104304000,-500.0,9.916e-05,2]
[422569796,1779104305000,-500.0,9.916e-05,2]
[422569795,1779104305000,-500.0,9.916e-05,2]
[422569797,1779104306000,-500.0,9.916e-05,2]
[422569798,1779104307000,-500.0,9.916e-05,2]
[422569799,1779104315000,-500.0,9.916e-05,2]
[422569800,1779104316000,-500.0,9.916e-05,2]
[422569801,1779104316000,-500.0,9.916e-05,2]
[422569802,1779104316000,-500.0,9.916e-05,2]
[422569805,1779104317000,-500.0,9.916e-05,2]
[422569804,1779104317000,-500.0,9.916e-05,2]
[422569803,1779104317000,-500.0,9.916e-05,2]
[422569808,1779104318000,-500.0,9.916e-05,2]
[422569807,1779104318000,-500.0,9.916e-05,2]
[422569806,1779104318000,-500.0,9.916e-05,2]
[422569810,1779104319000,-500.0,9.916e-05,2]
[422569809,1779104319000,-500.0,9.916e-05,2]
[422569814,1779104320000,-500.0,9.916e-05,2]
[422569813,1779104320000,-500.0,9.916e-05,2]
[422569811,1779104320000,-500.0,9.916e-05,2]
[422569815,1779104321000,-500.0,9.916e-05,2]
[422569817,1779104321000,-500.0,9.916e-05,2]
[422569816,1779104321000,-500.0,9.916e-05,2]
[422569818,1779104322000,-500.0,9.916e-05,2]
[422569819,1779104323000,-500.0,9.916e-05,2]
[422569821,1779104328000,-500.0,9.916e-05,2]
[422569820,1779104328000,-500.0,9.916e-05,2]
[422569824,1779104329000,-500.0,9.916e-05,2]
[422569823,1779104329000,-500.0,9.916e-05,2]
[422569822,1779104329000,-500.0,9.916e-05,2]
[422569826,1779104330000,-500.0,9.916e-05,2]
[422569825,1779104330000,-500.0,9.916e-05,2]
[422569829,1779104331000,-500.0,9.916e-05,2]
[422569828,1779104331000,-500.0,9.916e-05,2]
[422569827,1779104331000,-500.0,9.916e-05,2]
[422569830,1779104332000,-500.0,9.916e-05,2]
[422569832,1779104332000,-500.0,9.916e-05,2]
[422569831,1779104332000,-500.0,9.916e-05,2]
[422569833,1779104333000,-500.0,9.916e-05,2]
[422569834,1779104333000,-500.0,9.916e-05,2]
[422569837,1779104334000,-500.0,9.916e-05,2]
[422569836,1779104334000,-500.0,9.916e-05,2]
[422569835,1779104334000,-500.0,9.916e-05,2]
[422569838,1779104335000,-500.0,9.916e-05,2]
[422569839,1779104340000,-500.0,9.916e-05,2]
[422569840,1779104341000,-500.0,9.916e-05,2]
[422569841,1779104342000,-500.0,9.916e-05,2]
[422569844,1779104343000,-500.0,9.916e-05,2]
[422569849,1779104750000,444.0,0.00017808,120]
[422569850,1779104896000,180.0,0.00017808,120]
[422569921,1779105038000,-299.17415496,9.241e-05,2]
[422569922,1779105038000,-358.75466704,9.335e-05,2]
[422569923,1779105038000,-151.02767474,9.521e-05,2]
[422569931,1779105038000,-15803.49179502,9.816e-05,2]
[422569928,1779105038000,-366.85821849,9.811e-05,2]
[422569925,1779105038000,-178.97207648,9.523e-05,2]
[422569927,1779105038000,-174.63603102,9.811e-05,2]
[422569929,1779105038000,-88638.0,9.812e-05,2]
[422569924,1779105038000,-164.66273617,9.523e-05,2]
[422569926,1779105038000,-167.85766703,9.524e-05,2]
[422569930,1779105038000,-260.96206782,9.816e-05,2]
[422569940,1779105041000,-321.06517698,9.284e-05,2]
[422569942,1779105041000,-981.08142789,9.816e-05,2]
[422569941,1779105041000,-15159.93496206,9.816e-05,2]
[422569939,1779105041000,-4.74529322,9.284e-05,2]
[422569965,1779105043000,-5167.93436883,9.816e-05,2]
[422570037,1779105046000,-794.0,0.000104,2]
[422570025,1779105046000,-777.0,0.00010168,2]
[422570028,1779105046000,-1210.42962518,0.00010271,2]
[422570036,1779105046000,-4525.47001818,0.00010328,2]
[422570035,1779105046000,-189.3278731,0.000103,2]
[422570026,1779105046000,-335.71533406,0.00010168,2]
[422570027,1779105046000,-327.68640433,0.00010219,2]
[422570023,1779105046000,-357.94415295,0.00010168,2]
[422570029,1779105046000,-161.68513202,0.00010277,2]
[422570021,1779105046000,-302.05534948,0.00010165,2]
[422570020,1779105046000,-162.2530241,0.00010165,2]
[422570018,1779105046000,-3271.8825333,9.916e-05,2]
[422570016,1779105046000,-152.0,9.818e-05,7]
[422570019,1779105046000,-155.109,0.00010101,2]
[422570014,1779105046000,-25644.75716687,9.816e-05,2]
[422570015,1779105046000,-1210.42962523,9.816e-05,2]
[422570017,1779105046000,-3054.1248144,9.916e-05,2]
[422570008,1779105046000,-487.9534733,9.816e-05,2]
[422570022,1779105046000,-329.32547234,0.00010168,2]
[422570031,1779105046000,-792.66417786,0.000103,2]
[422570024,1779105046000,-555.0,0.00010168,2]
[422570033,1779105046000,-908.08384766,0.000103,2]
[422570030,1779105046000,-400.79002501,0.000103,2]
[422570055,1779105046000,-267.88719659,0.00010426,2]
[422570054,1779105046000,-502.40519416,0.00010426,2]
[422570053,1779105046000,-502.40519416,0.00010426,2]
[422570052,1779105046000,-502.40519416,0.00010426,2]
[422570049,1779105046000,-502.40519416,0.00010426,2]
[422570050,1779105046000,-502.40519416,0.00010426,2]
[422570043,1779105046000,-502.40519416,0.00010426,2]
[422570048,1779105046000,-502.40519416,0.00010426,2]
[422570042,1779105046000,-502.40519416,0.00010426,2]
[422570051,1779105046000,-502.40519416,0.00010426,2]
[422570047,1779105046000,-502.40519416,0.00010426,2]
[422570041,1779105046000,-502.40519416,0.00010426,2]
[422570039,1779105046000,-88.7197913,0.00010426,2]
[422570045,1779105046000,-502.40519416,0.00010426,2]
[422570040,1779105046000,-297.50463043,0.00010426,2]
[422570034,1779105046000,-234.20776706,0.000103,2]
[422570044,1779105046000,-502.40519416,0.00010426,2]
[422570038,1779105046000,-413.68540286,0.00010426,2]
[422570032,1779105046000,-873.21947162,0.000103,2]
[422570046,1779105046000,-502.40519416,0.00010426,2]
[422570067,1779105673000,-1677.73068863,9.012e-05,2]
[422570068,1779105691000,-357.94678517,9.057e-05,2]
[422570069,1779105707000,-5000.0,9.103e-05,2]
[422570070,1779105725000,-164.10288384,9.573e-05,2]
[422570072,1779105742000,-164.15184646,9.573e-05,2]
[422570073,1779105760000,-159.68759093,9.575e-05,2]
[422570075,1779105777000,-181.23320969,9.575e-05,2]
[422570082,1779106222000,-283.60973733,7.375e-05,2]
[422570083,1779106224000,-1020.42557487,7.375e-05,2]
[422570100,1779106232000,-1200.0,7.56e-05,2]
[422570087,1779106232000,-3695.9646878,7.375e-05,2]
[422570098,1779106232000,-300.0,7.559e-05,2]
[422570089,1779106232000,-1200.0,7.448e-05,2]
[422570091,1779106232000,-5000.0,7.449e-05,2]
[422570107,1779106232000,-40351.76778563,7.6e-05,2]
[422570096,1779106232000,-300.0,7.559e-05,2]
[422570093,1779106232000,-300.0,7.558e-05,2]
[422570101,1779106232000,-350.78784947,7.562e-05,2]
[422570102,1779106232000,-1710.58222478,7.6e-05,2]
[422570104,1779106232000,-10458.55243871,7.6e-05,2]
[422570094,1779106232000,-300.0,7.558e-05,2]
[422570299,1779106238000,-225.0,8.793e-05,2]
[422570294,1779106238000,-420.0,8.314e-05,2]
[422570305,1779106238000,-180.0,9.146e-05,2]
[422570303,1779106238000,-180.0,9.145e-05,2]
[422570301,1779106238000,-720.0,9.012e-05,2]
[422570292,1779106238000,-1680.0,8.193e-05,2]
[422570302,1779106238000,-907.82221888,9.108e-05,2]
[422570293,1779106238000,-301.0,8.314e-05,2]
[422570288,1779106238000,-500.0,7.599e-05,2]
[422570296,1779106238000,-420.0,8.315e-05,2]
[422570285,1779106238000,-500.0,7.599e-05,2]
[422570290,1779106238000,-500.0,7.599e-05,2]
[422570286,1779106238000,-500.0,7.599e-05,2]
[422570287,1779106238000,-254.95580349,7.599e-05,2]
[422570284,1779106238000,-173.75510376,7.599e-05,2]
[422570282,1779106238000,-5000.0,7.301e-05,2]
[422570283,1779106238000,-500.0,7.599e-05,2]
[422570291,1779106238000,-7237.04734277,7.6e-05,2]
[422570300,1779106238000,-224.99,8.795e-05,2]
[422570289,1779106238000,-243.40996689,7.599e-05,2]
[422570297,1779106238000,-907.82221892,8.359e-05,2]
[422570295,1779106238000,-263.0,8.315e-05,2]
[422570336,1779106238000,-20665.42471379,9.516e-05,2]
[422570334,1779106238000,-42772.01148746,9.516e-05,2]
[422570330,1779106238000,-1019.67745401,9.516e-05,2]
[422570327,1779106238000,-724.1949028,9.515e-05,2]
[422570328,1779106238000,-724.1949028,9.515e-05,2]
[422570315,1779106238000,-500.0,9.515e-05,2]
[422570325,1779106238000,-724.1949028,9.515e-05,2]
[422570316,1779106238000,-500.0,9.515e-05,2]
[422570332,1779106238000,-1600.67691427,9.516e-05,2]
[422570314,1779106238000,-500.0,9.515e-05,2]
[422570312,1779106238000,-511.67640439,9.515e-05,2]
[422570308,1779106238000,-208.2532413,9.515e-05,2]
[422570319,1779106238000,-550.0,9.515e-05,2]
[422570306,1779106238000,-10228.16695051,9.514e-05,2]
[422570323,1779106238000,-724.1949028,9.515e-05,2]
[422570310,1779106238000,-500.0,9.515e-05,2]
[422570318,1779106238000,-500.0,9.515e-05,2]
[422570321,1779106238000,-188.14772212,9.515e-05,2]
[422570298,1779106238000,-200.0,8.528e-05,2]
[422570753,1779106242000,-304.0,9.516e-05,2]
[422570751,1779106242000,-15496.99999999,9.516e-05,2]
[422570749,1779106242000,-408.87603072,9.516e-05,2]
[422570974,1779106243000,-500.0,9.999e-05,2]
[422570969,1779106243000,-500.0,9.999e-05,2]
[422570976,1779106243000,-500.0,9.999e-05,2]
[422570963,1779106243000,-907.82221888,9.858e-05,2]
[422570952,1779106243000,-1990.36528009,9.516e-05,2]
[422570959,1779106243000,-413.92966237,9.562e-05,2]
[422570955,1779106243000,-80709.63109222,9.516e-05,2]
[422570953,1779106243000,-382.74849313,9.516e-05,2]
[422570957,1779106243000,-14089.55812871,9.516e-05,2]
[422570965,1779106243000,-161.68513202,9.96e-05,2]
[422570970,1779106243000,-500.0,9.999e-05,2]
[422570967,1779106243000,-7697.9558468,9.961e-05,2]
[422570972,1779106243000,-500.0,9.999e-05,2]
[422570994,1779106243000,-230.96629198,9.999e-05,2]
[422571004,1779106243000,-62152.29814646,0.0001,2]
[422571002,1779106243000,-500.0,9.999e-05,2]
[422570990,1779106243000,-500.0,9.999e-05,2]
[422570988,1779106243000,-500.0,9.999e-05,2]
[422570998,1779106243000,-500.0,9.999e-05,2]
[422570986,1779106243000,-500.0,9.999e-05,2]
[422570984,1779106243000,-500.0,9.999e-05,2]
[422570992,1779106243000,-500.0,9.999e-05,2]
[422570996,1779106243000,-500.0,9.999e-05,2]
[422570982,1779106243000,-500.0,9.999e-05,2]
[422571000,1779106243000,-500.0,9.999e-05,2]
[422570961,1779106243000,-160.63848962,9.575e-05,2]
[422571366,1779106247000,-7394.18664122,0.0001,2]
[422571364,1779106247000,-1020.42557487,9.421e-05,2]
[422571365,1779106247000,-2016.81694785,0.0001,2]
[422571501,1779106846000,269.430401,5.001e-05,2]
[422571502,1779106852000,-1020.42662468,5.001e-05,2]
[422571503,1779106855000,-283.60973733,5.001e-05,2]
[422571504,1779106857000,-279.61434068,5.001e-05,2]
[422571505,1779106879000,2324.46088707,5e-05,2]
[422571514,1779107432000,-631.87264066,5.453e-05,2]
[422571840,1779107438000,-168.63329388,5.759e-05,2]
[422571837,1779107438000,-4368.12735934,5.453e-05,2]
[422572199,1779107441000,-496.00009711,9.759e-05,2]
[422572177,1779107441000,-151.0,8.537e-05,2]
[422572215,1779107441000,-500.0,9.999e-05,2]
[422572211,1779107441000,-500.0,9.999e-05,2]
[422572213,1779107441000,-360.21347026,9.999e-05,2]
[422572209,1779107441000,-161.68513202,9.948e-05,2]
[422572197,1779107441000,-160.72261622,9.726e-05,2]
[422572193,1779107441000,-300.0,9.725e-05,2]
[422572195,1779107441000,-151.5,9.726e-05,2]
[422572179,1779107441000,-152.055921,9.547e-05,2]
[422572181,1779107441000,-162.8974393,9.547e-05,2]
[422572166,1779107441000,-151.0,5.949e-05,2]
[422572189,1779107441000,-164.44502634,9.574e-05,2]
[422572185,1779107441000,-201.44493363,9.558e-05,2]
[422572187,1779107441000,-183.58754292,9.559e-05,2]
[422572173,1779107441000,-189.24105651,6.564e-05,2]
[422572175,1779107441000,-430.35302543,7.759e-05,2]
[422572171,1779107441000,-250.0,6.048e-05,2]
[422572183,1779107441000,-1200.0,9.556e-05,2]
[422572164,1779107441000,-196.07265988,5.759e-05,2]
[422572169,1779107441000,-151.0,6.009e-05,2]
[422572167,1779107441000,-151.0,5.949e-05,2]
[422572201,1779107441000,-454.0,9.798e-05,2]
[422572191,1779107441000,-159.68759093,9.574e-05,2]
[422572205,1779107441000,-152.0,9.818e-05,7]
[422572262,1779107441000,-58077.57769279,0.0001,2]
[422572219,1779107441000,-500.0,9.999e-05,2]
[422572207,1779107441000,-152.0,9.818e-05,7]
[422572246,1779107441000,-500.0,9.999e-05,2]
[422572248,1779107441000,-608.63154786,9.999e-05,2]
[422572252,1779107441000,-500.0,9.999e-05,2]
[422572250,1779107441000,-500.0,9.999e-05,2]
[422572260,1779107441000,-300.0,9.999e-05,2]
[422572258,1779107441000,-500.0,9.999e-05,2]
[422572256,1779107441000,-500.0,9.999e-05,2]
[422572254,1779107441000,-500.0,9.999e-05,2]
[422572239,1779107441000,-500.0,9.999e-05,2]
[422572240,1779107441000,-500.0,9.999e-05,2]
[422572242,1779107441000,-500.0,9.999e-05,2]
[422572244,1779107441000,-500.0,9.999e-05,2]
[422572238,1779107441000,-500.0,9.999e-05,2]
[422572217,1779107441000,-500.0,9.999e-05,2]
[422572203,1779107441000,-193.71221854,9.799e-05,2]
[422572232,1779107441000,-500.0,9.999e-05,2]
[422572223,1779107441000,-500.0,9.999e-05,2]
[422572225,1779107441000,-500.0,9.999e-05,2]
[422572221,1779107441000,-500.0,9.999e-05,2]
[422572228,1779107441000,-500.0,9.999e-05,2]
[422572234,1779107441000,-500.0,9.999e-05,2]
[422572230,1779107441000,-500.0,9.999e-05,2]
[422572236,1779107441000,-500.0,9.999e-05,2]
[422572226,1779107441000,-500.0,9.999e-05,2]
[422572385,1779107443000,-1426.748,0.00010059,2]
[422572381,1779107443000,-755.11298001,0.0001,2]
[422572391,1779107443000,-402.88986726,0.00010204,2]
[422572383,1779107443000,-563.32515885,0.0001,2]
[422572392,1779107443000,-367.17508584,0.00010205,2]
[422572393,1779107443000,-669.89751545,0.00010219,2]
[422572394,1779107443000,-328.89005268,0.00010221,2]
[422572384,1779107443000,-500.0,0.0001,2]
[422572382,1779107443000,-27860.12174654,0.0001,2]
[422572386,1779107443000,-647.0,0.00010059,2]
[422572387,1779107443000,-443.0,0.00010059,2]
[422572396,1779107443000,-500.0,0.00010274,2]
[422572390,1779107443000,-151.0,0.00010111,2]
[422572388,1779107443000,-185.0,0.00010059,2]
[422572395,1779107443000,-319.37518186,0.00010221,2]
[422572397,1779107443000,-225.806,0.00010328,2]
[422572399,1779107443000,-403720.42551779,0.00010428,2]
[422572398,1779107443000,-396.0,0.000104,2]
[422572389,1779107443000,-268.388,0.00010101,2]
[422572421,1779107446000,-3796.3410728,0.00010428,2]
[422572422,1779107447000,-1045.81299024,0.00010428,2]
[422572431,1779108579000,5000.0,5e-05,2]
[422572432,1779108594000,329.83074482,5e-05,2]
[422572433,1779108602000,5000.0,5e-05,2]
[422572434,1779108610000,1481.22523184,5e-05,2]
[422572435,1779108624000,831.61932728,5e-05,2]
[422572482,1779108632000,-300.0,5.499e-05,2]
[422572480,1779108632000,-345.27914806,5.091e-05,2]
[422572483,1779108632000,-796.44036395,5.5e-05,2]
[422572485,1779108632000,-2083.55326257,5.5e-05,2]
[422572487,1779108632000,-191.15486976,5.5e-05,2]
[422572491,1779108632000,-594.54488708,5.5e-05,2]
[422572493,1779108632000,-579.10069817,5.5e-05,2]
[422572489,1779108632000,-361.92866289,5.5e-05,2]
[422572495,1779108632000,-84.89193363,5.611e-05,2]
[422572583,1779108638000,-2487.97592881,5.611e-05,2]
[422572585,1779108638000,-3013.84201652,5.814e-05,2]
[422572594,1779108638000,-420.0,6.049e-05,2]
[422572592,1779108638000,-913.61711461,6.018e-05,2]
[422572587,1779108638000,-151.0,5.889e-05,2]
[422572589,1779108638000,-2128.21249439,6.018e-05,2]
[422572595,1779108638000,-1157.55983436,6.221e-05,2]
[422572646,1779108641000,-407.42939471,7.091e-05,2]
[422572639,1779108641000,-2353.23152133,6.221e-05,2]
[422572640,1779108641000,-3752.97590071,6.425e-05,2]
[422572642,1779108641000,-483.0,6.654e-05,2]
[422572644,1779108641000,-4448.71484908,6.832e-05,2]
[422572641,1779108641000,-3979.75310239,6.628e-05,2]
[422572645,1779108641000,-4492.1097849,7.035e-05,2]
[422572653,1779108641000,-831.24686294,7.646e-05,2]
[422572647,1779108641000,-3135.88544689,7.239e-05,2]
[422572649,1779108641000,-685.65960847,7.443e-05,2]
[422572648,1779108641000,-1781.79114889,7.239e-05,2]
[422572652,1779108641000,-808.03,7.646e-05,2]
[422572651,1779108641000,-3747.36147954,7.646e-05,2]
[422572654,1779108641000,-603.2243635,7.85e-05,2]
[422572650,1779108641000,-4287.43767713,7.443e-05,2]
[422572643,1779108641000,-250.0,6.693e-05,2]
[422572660,1779108643000,-5012.36726695,7.85e-05,2]
[422572662,1779108643000,-567.3888868,8e-05,2]
[422572661,1779108643000,-567.3888868,8e-05,2]
[422572663,1779108643000,-5845.81204893,8.053e-05,2]
[422572664,1779108643000,-6080.81974209,8.257e-05,2]
[422572669,1779108643000,-7011.27596539,9.071e-05,2]
[422572666,1779108643000,-6546.04785374,8.664e-05,2]
[422572668,1779108643000,-567.3888868,8.939e-05,2]
[422572670,1779108643000,-469.57964136,9.091e-05,2]
[422572667,1779108643000,-6705.43122038,8.867e-05,2]
[422572671,1779108643000,-7135.24080611,9.274e-05,2]
[422572673,1779108643000,-151.075984,9.534e-05,2]
[422572672,1779108643000,-7476.50407704,9.478e-05,2]
[422572674,1779108643000,-157.46827587,9.559e-05,2]
[422572665,1779108643000,-6275.62163466,8.46e-05,2]
[422572683,1779108644000,-500.0,9.599e-05,2]
[422572680,1779108644000,-500.0,9.599e-05,2]
[422572684,1779108644000,-489.51569516,9.599e-05,2]
[422572685,1779108644000,-500.0,9.599e-05,2]
[422572677,1779108644000,-252.14942919,9.599e-05,2]
[422572676,1779108644000,-500.0,9.599e-05,2]
[422572675,1779108644000,-589.20506982,9.599e-05,2]
[422572678,1779108644000,-500.0,9.599e-05,2]
[422572679,1779108644000,-500.0,9.599e-05,2]
[422572686,1779108644000,-500.0,9.599e-05,2]
[422572682,1779108644000,-500.0,9.599e-05,2]
[422572687,1779108644000,-500.0,9.599e-05,2]
[422572692,1779108644000,-500.0,9.599e-05,2]
[422572689,1779108644000,-500.0,9.599e-05,2]
[422572691,1779108644000,-500.0,9.599e-05,2]
[422572690,1779108644000,-500.0,9.599e-05,2]
[422572688,1779108644000,-500.0,9.599e-05,2]
[422572693,1779108644000,-10970.53894213,9.6e-05,2]
[422572681,1779108644000,-500.0,9.599e-05,2]
[422572715,1779108650000,-3931.05148292,9.6e-05,2]
[422572713,1779108650000,-437.12065966,9.504e-05,2]
[422572821,1779109243000,4465.41783906,7.937e-05,2]